[Event "Late-Titled-Tuesday-Blitz-May-14-2024"]
[Site "Chess.com"]
[Date "2024.05.14"]
[Round "2"]
[White "penguingm1"]
[Black "Defend1r"]
[Result "1-0"]
[WhiteElo "2849"]
[BlackElo "2576"]
[TimeControl "180+1"]
[EndTime "14:17:29 PDT"]
[Termination "penguingm1 won by checkmate"]

1. d4 {[%clk 0:03:00.9]} 1... Nf6 {[%clk 0:02:59.6]} 2. c4 {[%clk 0:03:01]} 2...
e6 {[%clk 0:02:59.1]} 3. Nc3 {[%clk 0:03:01.4]} 3... Bb4 {[%clk 0:02:57.8]} 4.
Qc2 {[%clk 0:03:02]} 4... d6 {[%clk 0:02:57.7]} 5. Nf3 {[%clk 0:03:02.1]} 5...
O-O {[%clk 0:02:55.9]} 6. g3 {[%clk 0:03:02.4]} 6... b6 {[%clk 0:02:50.4]} 7.
Bg2 {[%clk 0:03:02.4]} 7... Bb7 {[%clk 0:02:48]} 8. O-O {[%clk 0:03:02.5]} 8...
c5 {[%clk 0:02:39]} 9. Rd1 {[%clk 0:02:59.6]} 9... Qe7 {[%clk 0:02:32.6]} 10. b3
{[%clk 0:02:35]} 10... Nbd7 {[%clk 0:01:43.1]} 11. Bb2 {[%clk 0:02:29.6]} 11...
Bxc3 {[%clk 0:01:42.4]} 12. Qxc3 {[%clk 0:02:28.3]} 12... Ne4 {[%clk 0:01:41.5]}
13. Qe3 {[%clk 0:02:28.1]} 13... f5 {[%clk 0:01:34.1]} 14. Ng5 {[%clk
0:02:19.8]} 14... Ndf6 {[%clk 0:01:29.3]} 15. Nh3 {[%clk 0:02:11.1]} 15... cxd4
{[%clk 0:01:11.8]} 16. Qxd4 {[%clk 0:02:06.3]} 16... e5 {[%clk 0:01:11.9]} 17.
Qd3 {[%clk 0:02:06.7]} 17... Rad8 {[%clk 0:00:32.4]} 18. f3 {[%clk 0:02:05.7]}
18... Nc5 {[%clk 0:00:31.7]} 19. Qxf5 {[%clk 0:02:01.7]} 19... e4 {[%clk
0:00:28.8]} 20. Qg5 {[%clk 0:01:55.1]} 20... exf3 {[%clk 0:00:24.4]} 21. exf3
{[%clk 0:01:56]} 21... Rde8 {[%clk 0:00:18.7]} 22. Qd2 {[%clk 0:01:49.7]} 22...
Qe2 {[%clk 0:00:18.1]} 23. Nf4 {[%clk 0:01:49.2]} 23... Qxd2 {[%clk 0:00:13.6]}
24. Rxd2 {[%clk 0:01:50.1]} 24... g5 {[%clk 0:00:13.6]} 25. Ne2 {[%clk
0:01:37.7]} 25... d5 {[%clk 0:00:10.2]} 26. Bxf6 {[%clk 0:01:35.4]} 26... Rxf6
{[%clk 0:00:08.1]} 27. cxd5 {[%clk 0:01:35.5]} 27... Rd6 {[%clk 0:00:04.8]} 28.
Nc3 {[%clk 0:01:35.1]} 28... a6 {[%clk 0:00:05.2]} 29. Ne4 {[%clk 0:01:33]}
29... Nxe4 {[%clk 0:00:04.3]} 30. fxe4 {[%clk 0:01:33.9]} 30... Re5 {[%clk
0:00:04.5]} 31. Rc1 {[%clk 0:01:34.2]} 31... Re7 {[%clk 0:00:04.5]} 32. Rf2
{[%clk 0:01:33.1]} 32... Kg7 {[%clk 0:00:04.5]} 33. h4 {[%clk 0:01:33.6]} 33...
h6 {[%clk 0:00:04.5]} 34. hxg5 {[%clk 0:01:32.9]} 34... hxg5 {[%clk 0:00:05.4]}
35. Rf5 {[%clk 0:01:33.4]} 35... Rg6 {[%clk 0:00:05.6]} 36. Kf2 {[%clk
0:01:32.2]} 36... Rd7 {[%clk 0:00:05.9]} 37. Ke3 {[%clk 0:01:32.2]} 37... g4
{[%clk 0:00:05.5]} 38. Kd4 {[%clk 0:01:32.4]} 38... Kh6 {[%clk 0:00:03]} 39. e5
{[%clk 0:01:30.6]} 39... Rg8 {[%clk 0:00:01.9]} 40. Be4 {[%clk 0:01:26.6]} 40...
Rgd8 {[%clk 0:00:01.7]} 41. Rh1+ {[%clk 0:01:27.1]} 41... Kg7 {[%clk 0:00:02.1]}
42. Rg5+ {[%clk 0:01:25]} 42... Kf8 {[%clk 0:00:02.2]} 43. e6 {[%clk 0:01:23.8]}
43... Rd6 {[%clk 0:00:01.5]} 44. Rh8+ {[%clk 0:01:23.5]} 44... Ke7 {[%clk
0:00:02.4]} 45. Rh7+ {[%clk 0:01:21.1]} 45... Kf8 {[%clk 0:00:01.9]} 46. Rf7+
{[%clk 0:01:21.4]} 46... Ke8 {[%clk 0:00:02]} 47. Rg8# {[%clk 0:01:22.3]} 1-0

[Event "Late-Titled-Tuesday-Blitz-May-14-2024"]
[Site "Chess.com"]
[Date "2024.05.14"]
[Round "2"]
[White "FuenfgegenWilly"]
[Black "klifus"]
[Result "1-0"]
[WhiteElo "2457"]
[BlackElo "2135"]
[TimeControl "180+1"]
[EndTime "14:17:31 PDT"]
[Termination "FuenfgegenWilly won by resignation"]

1. b3 {[%clk 0:02:53.2]} 1... e5 {[%clk 0:02:58.5]} 2. Bb2 {[%clk 0:02:54.1]}
2... Nc6 {[%clk 0:02:57.3]} 3. e3 {[%clk 0:02:55]} 3... d5 {[%clk 0:02:56.4]} 4.
Bb5 {[%clk 0:02:45]} 4... Bd6 {[%clk 0:02:53.8]} 5. f4 {[%clk 0:02:39.4]} 5...
Qe7 {[%clk 0:02:40.2]} 6. Nf3 {[%clk 0:02:36.4]} 6... Bg4 {[%clk 0:02:38.3]} 7.
fxe5 {[%clk 0:02:32.9]} 7... Bxe5 {[%clk 0:02:32.3]} 8. Bxe5 {[%clk 0:02:13]}
8... Bxf3 {[%clk 0:02:31.2]} 9. Qxf3 {[%clk 0:02:11.3]} 9... Qxe5 {[%clk
0:02:30.9]} 10. Nc3 {[%clk 0:02:11.2]} 10... Nf6 {[%clk 0:02:29.4]} 11. O-O
{[%clk 0:02:09.5]} 11... O-O-O {[%clk 0:02:25.3]} 12. Bxc6 {[%clk 0:02:05.9]}
12... bxc6 {[%clk 0:02:24.1]} 13. Na4 {[%clk 0:02:06.8]} 13... Rhe8 {[%clk
0:02:05.5]} 14. Qe2 {[%clk 0:02:06.5]} 14... Qd6 {[%clk 0:01:47]} 15. Qa6+
{[%clk 0:02:04.6]} 15... Kb8 {[%clk 0:01:46.7]} 16. b4 {[%clk 0:02:04.5]} 16...
Ka8 {[%clk 0:01:44.9]} 17. Nc5 {[%clk 0:02:02.8]} 17... Rb8 {[%clk 0:01:44.6]}
18. Rab1 {[%clk 0:02:01.7]} 18... Rb6 {[%clk 0:01:43.9]} 19. Qa4 {[%clk
0:02:00.7]} 19... Nd7 {[%clk 0:01:40.9]} 20. d4 {[%clk 0:01:45.1]} 20... f6
{[%clk 0:01:34.9]} 21. Rb3 {[%clk 0:01:43.5]} 21... h5 {[%clk 0:01:29.8]} 22.
Ra3 {[%clk 0:01:42.9]} 22... a6 {[%clk 0:01:15.3]} 23. Nxa6 {[%clk 0:01:33.4]}
23... Kb7 {[%clk 0:01:15.1]} 24. Nc5+ {[%clk 0:01:25.8]} 24... Kc8 {[%clk
0:01:14.6]} 25. Qa8+ {[%clk 0:01:16.3]} 25... Rb8 {[%clk 0:01:13.3]} 26. Qa6+
{[%clk 0:01:14.1]} 26... Kd8 {[%clk 0:01:12.2]} 27. Nb7+ {[%clk 0:01:14.4]}
27... Rxb7 {[%clk 0:01:10.6]} 28. Qxb7 {[%clk 0:01:15.3]} 28... Re4 {[%clk
0:01:07.5]} 29. Ra8+ {[%clk 0:01:11.9]} 29... Ke7 {[%clk 0:01:07.1]} 30. Qc8
{[%clk 0:01:12.5]} 30... Kf7 {[%clk 0:01:04.4]} 31. Qg8+ {[%clk 0:01:08.9]}
31... Kg6 {[%clk 0:01:03.8]} 32. Rf3 {[%clk 0:01:08]} 32... Rg4 {[%clk
0:01:02.1]} 33. Qe8+ {[%clk 0:01:06.5]} 33... Kh6 {[%clk 0:00:57.6]} 34. Rh3
{[%clk 0:01:05.1]} 34... Rg5 {[%clk 0:00:54.8]} 35. Qh8+ {[%clk 0:01:01.3]}
35... Kg6 {[%clk 0:00:53.2]} 36. Rg8 {[%clk 0:00:59.9]} 36... Qe7 {[%clk
0:00:52]} 37. Re8 {[%clk 0:00:57.8]} 37... Qf7 {[%clk 0:00:50.2]} 38. Qg8 {[%clk
0:00:55.8]} 38... Qxg8 {[%clk 0:00:48.4]} 39. Rxg8 {[%clk 0:00:56.7]} 39... Nb6
{[%clk 0:00:47.6]} 40. Rg3 {[%clk 0:00:53.2]} 40... Rxg3 {[%clk 0:00:43.8]} 41.
hxg3 {[%clk 0:00:54.1]} 41... Nc4 {[%clk 0:00:43.1]} 42. a4 {[%clk 0:00:53.5]}
42... Nxe3 {[%clk 0:00:42.3]} 43. a5 {[%clk 0:00:53.2]} 43... Nxc2 {[%clk
0:00:42.1]} 44. Rb8 {[%clk 0:00:51.7]} 44... Nxd4 {[%clk 0:00:41.1]} 45. a6
{[%clk 0:00:52.1]} 45... Nb5 {[%clk 0:00:35.4]} 46. Rxb5 {[%clk 0:00:52.4]}
46... cxb5 {[%clk 0:00:35.6]} 47. a7 {[%clk 0:00:53.3]} 47... d4 {[%clk
0:00:35.8]} 48. a8=Q {[%clk 0:00:54.2]} 48... d3 {[%clk 0:00:36.1]} 49. Qe4+
{[%clk 0:00:55.1]} 1-0

[Event "Late-Titled-Tuesday-Blitz-May-14-2024"]
[Site "Chess.com"]
[Date "2024.05.14"]
[Round "2"]
[White "zajka-molotok"]
[Black "el_sporco"]
[Result "1-0"]
[WhiteElo "2556"]
[BlackElo "2364"]
[TimeControl "180+1"]
[EndTime "14:17:33 PDT"]
[Termination "zajka-molotok won by resignation"]

1. b3 {[%clk 0:03:00.9]} 1... e5 {[%clk 0:02:56.4]} 2. Bb2 {[%clk 0:03:01.7]}
2... Nc6 {[%clk 0:02:56.8]} 3. e3 {[%clk 0:03:01.9]} 3... Nf6 {[%clk 0:02:57.1]}
4. Nf3 {[%clk 0:03:02.3]} 4... Bd6 {[%clk 0:02:57]} 5. d4 {[%clk 0:03:01.3]}
5... exd4 {[%clk 0:02:57.9]} 6. Nxd4 {[%clk 0:03:01.6]} 6... O-O {[%clk
0:02:56.3]} 7. Bd3 {[%clk 0:03:01]} 7... Nxd4 {[%clk 0:02:29.7]} 8. Bxd4 {[%clk
0:03:00]} 8... c6 {[%clk 0:02:29.8]} 9. Qf3 {[%clk 0:02:56.9]} 9... Qa5+ {[%clk
0:02:25.1]} 10. Nd2 {[%clk 0:02:52]} 10... Be5 {[%clk 0:02:16.3]} 11. O-O {[%clk
0:02:43.2]} 11... Bxd4 {[%clk 0:02:12.8]} 12. Nc4 {[%clk 0:02:43.4]} 12... Qc7
{[%clk 0:01:31.7]} 13. exd4 {[%clk 0:02:43.2]} 13... d5 {[%clk 0:01:31.6]} 14.
Ne5 {[%clk 0:02:41.5]} 14... c5 {[%clk 0:01:30.8]} 15. c3 {[%clk 0:02:29.6]}
15... Be6 {[%clk 0:01:29.9]} 16. Qg3 {[%clk 0:02:26.4]} 16... Rac8 {[%clk
0:01:24.5]} 17. Rfe1 {[%clk 0:02:23.9]} 17... Rfe8 {[%clk 0:01:16.8]} 18. Qh4
{[%clk 0:02:18.1]} 18... Qa5 {[%clk 0:00:59.1]} 19. dxc5 {[%clk 0:02:01.1]}
19... Qxc5 {[%clk 0:00:45.2]} 20. Rac1 {[%clk 0:01:54.7]} 20... Red8 {[%clk
0:00:33.8]} 21. Qd4 {[%clk 0:01:48.1]} 21... Qa5 {[%clk 0:00:23.3]} 22. a4
{[%clk 0:01:46.3]} 22... Rc7 {[%clk 0:00:22.5]} 23. Bb5 {[%clk 0:01:39.7]} 23...
Rdc8 {[%clk 0:00:19.5]} 24. b4 {[%clk 0:01:39.5]} 24... Qb6 {[%clk 0:00:20.1]}
25. Qd3 {[%clk 0:01:37.4]} 25... d4 {[%clk 0:00:19.4]} 26. c4 {[%clk 0:01:32.1]}
26... Qd6 {[%clk 0:00:15.8]} 27. c5 {[%clk 0:01:30.3]} 27... Qd8 {[%clk
0:00:15.9]} 28. Bc4 {[%clk 0:01:27.6]} 28... Bxc4 {[%clk 0:00:07.8]} 29. Nxc4
{[%clk 0:01:28.5]} 29... Re7 {[%clk 0:00:07.2]} 30. Nd6 {[%clk 0:01:27.2]} 30...
Rcc7 {[%clk 0:00:07]} 31. Qxd4 {[%clk 0:01:23.9]} 31... Rxe1+ {[%clk 0:00:07.1]}
32. Rxe1 {[%clk 0:01:24.8]} 32... Re7 {[%clk 0:00:07.7]} 33. Rxe7 {[%clk
0:01:20.5]} 33... Qxe7 {[%clk 0:00:08.6]} 34. g3 {[%clk 0:01:18.9]} 34... h6
{[%clk 0:00:08.7]} 35. Kg2 {[%clk 0:01:16.9]} 35... Qd7 {[%clk 0:00:08.3]} 36.
b5 {[%clk 0:01:12.1]} 36... a6 {[%clk 0:00:08]} 37. h3 {[%clk 0:01:08.8]} 37...
axb5 {[%clk 0:00:08.1]} 38. axb5 {[%clk 0:01:09.7]} 38... Ne8 {[%clk 0:00:07.9]}
39. Qd5 {[%clk 0:01:06.2]} 39... Nf6 {[%clk 0:00:06.6]} 40. Qxb7 {[%clk
0:01:04.3]} 40... Qe6 {[%clk 0:00:07.2]} 41. Qc8+ {[%clk 0:01:02.2]} 1-0

[Event "Late-Titled-Tuesday-Blitz-May-14-2024"]
[Site "Chess.com"]
[Date "2024.05.14"]
[Round "2"]
[White "MarcoRiehle"]
[Black "yaguigor"]
[Result "1-0"]
[WhiteElo "2791"]
[BlackElo "2555"]
[TimeControl "180+1"]
[EndTime "14:17:34 PDT"]
[Termination "MarcoRiehle won by resignation"]

1. e4 {[%clk 0:03:00.9]} 1... c5 {[%clk 0:02:58.4]} 2. a3 {[%clk 0:02:59.8]}
2... g6 {[%clk 0:02:55.2]} 3. h4 {[%clk 0:02:57.7]} 3... h5 {[%clk 0:02:53.3]}
4. Nc3 {[%clk 0:02:56.4]} 4... Bg7 {[%clk 0:02:52.6]} 5. Bc4 {[%clk 0:02:56.9]}
5... Nc6 {[%clk 0:02:45.1]} 6. d3 {[%clk 0:02:56.5]} 6... e6 {[%clk 0:02:40.3]}
7. Nf3 {[%clk 0:02:55.9]} 7... Nge7 {[%clk 0:02:39.3]} 8. Bg5 {[%clk 0:02:55.4]}
8... f6 {[%clk 0:02:37.2]} 9. Bf4 {[%clk 0:02:53.9]} 9... d5 {[%clk 0:02:26.4]}
10. Ba2 {[%clk 0:02:52.2]} 10... d4 {[%clk 0:02:20.7]} 11. Ne2 {[%clk
0:02:48.3]} 11... e5 {[%clk 0:02:20.3]} 12. Bd2 {[%clk 0:02:43.4]} 12... Qd6
{[%clk 0:02:15]} 13. c4 {[%clk 0:02:20.8]} 13... a5 {[%clk 0:02:03.1]} 14. Bb3
{[%clk 0:02:17]} 14... O-O {[%clk 0:02:01.5]} 15. Ba4 {[%clk 0:02:15.7]} 15...
Kh7 {[%clk 0:01:58.6]} 16. Bxc6 {[%clk 0:02:13.4]} 16... Nxc6 {[%clk 0:01:56.3]}
17. Qc2 {[%clk 0:02:02.6]} 17... Be6 {[%clk 0:01:47.1]} 18. a4 {[%clk
0:01:59.3]} 18... Bh6 {[%clk 0:01:42.2]} 19. Bxh6 {[%clk 0:01:56.4]} 19... Kxh6
{[%clk 0:01:42.1]} 20. O-O-O {[%clk 0:01:55.7]} 20... Nb4 {[%clk 0:01:38.2]} 21.
Qd2+ {[%clk 0:01:54.9]} 21... Kg7 {[%clk 0:01:38.6]} 22. Nh2 {[%clk 0:01:50.1]}
22... b5 {[%clk 0:01:30.7]} 23. cxb5 {[%clk 0:01:48.1]} 23... Bb3 {[%clk
0:01:24.8]} 24. g4 {[%clk 0:01:47.8]} 24... Rh8 {[%clk 0:01:18.3]} 25. gxh5
{[%clk 0:01:46.9]} 25... Rxh5 {[%clk 0:01:17.3]} 26. Ng3 {[%clk 0:01:47.3]}
26... Rh7 {[%clk 0:01:10.5]} 27. Rdg1 {[%clk 0:01:45]} 27... Kh8 {[%clk
0:01:09.8]} 28. h5 {[%clk 0:01:20.1]} 28... c4 {[%clk 0:01:08.5]} 29. hxg6
{[%clk 0:01:17.4]} 29... Nxd3+ {[%clk 0:01:07.8]} 30. Kb1 {[%clk 0:01:16.5]}
30... Nxb2 {[%clk 0:00:41.1]} 31. Ng4 {[%clk 0:01:02.4]} 31... Ra7 {[%clk
0:00:17.8]} 32. Nf5 {[%clk 0:00:53.8]} 32... Qa3 {[%clk 0:00:16.2]} 33. Qxb2
{[%clk 0:00:53.5]} 33... Qxa4 {[%clk 0:00:15.9]} 34. Nxf6 {[%clk 0:00:49.8]}
34... Rxh1 {[%clk 0:00:08.3]} 35. Rxh1+ {[%clk 0:00:49.2]} 1-0

[Event "Late-Titled-Tuesday-Blitz-May-14-2024"]
[Site "Chess.com"]
[Date "2024.05.14"]
[Round "2"]
[White "Ramil_Faizrakhmanov"]
[Black "DIMONBANAN"]
[Result "0-1"]
[WhiteElo "2867"]
[BlackElo "2619"]
[TimeControl "180+1"]
[EndTime "14:17:37 PDT"]
[Termination "DIMONBANAN won on time"]

1. d4 {[%clk 0:02:59.7]} 1... d5 {[%clk 0:03:00.2]} 2. c4 {[%clk 0:03:00.1]}
2... e6 {[%clk 0:03:00.7]} 3. Nc3 {[%clk 0:02:59.7]} 3... Be7 {[%clk 0:03:00.8]}
4. cxd5 {[%clk 0:02:58.3]} 4... exd5 {[%clk 0:03:00.9]} 5. Bf4 {[%clk
0:02:58.8]} 5... c6 {[%clk 0:03:00.9]} 6. e3 {[%clk 0:02:59.1]} 6... Nf6 {[%clk
0:02:58.3]} 7. Bd3 {[%clk 0:02:59.1]} 7... Bg4 {[%clk 0:02:55.7]} 8. Nge2 {[%clk
0:02:52.9]} 8... Bh5 {[%clk 0:02:55.4]} 9. O-O {[%clk 0:02:50]} 9... Bg6 {[%clk
0:02:53.6]} 10. Bxg6 {[%clk 0:02:44.9]} 10... hxg6 {[%clk 0:02:52.3]} 11. Rb1
{[%clk 0:02:44.9]} 11... Bd6 {[%clk 0:02:46.9]} 12. b4 {[%clk 0:02:43.8]} 12...
g5 {[%clk 0:02:37.9]} 13. Bxd6 {[%clk 0:02:40.1]} 13... Qxd6 {[%clk 0:02:37.7]}
14. Ng3 {[%clk 0:02:39.7]} 14... a6 {[%clk 0:02:32.3]} 15. a4 {[%clk 0:02:39.1]}
15... Nbd7 {[%clk 0:02:31.5]} 16. b5 {[%clk 0:02:34.7]} 16... cxb5 {[%clk
0:02:30.8]} 17. axb5 {[%clk 0:02:35.6]} 17... a5 {[%clk 0:02:31.6]} 18. h3
{[%clk 0:02:34.8]} 18... O-O {[%clk 0:01:57.2]} 19. Qf3 {[%clk 0:02:31.9]} 19...
Nb6 {[%clk 0:01:52.3]} 20. Qf5 {[%clk 0:02:25.5]} 20... Rfc8 {[%clk 0:01:48.1]}
21. Rfc1 {[%clk 0:02:16.3]} 21... Nc4 {[%clk 0:01:41.2]} 22. Qxg5 {[%clk
0:02:10.8]} 22... Nd2 {[%clk 0:01:41.1]} 23. Nf5 {[%clk 0:01:53.7]} 23... Qf8
{[%clk 0:01:41.2]} 24. Rb2 {[%clk 0:01:47.2]} 24... Nde4 {[%clk 0:01:40.5]} 25.
Nxe4 {[%clk 0:00:58]} 25... Rxc1+ {[%clk 0:01:39.7]} 26. Kh2 {[%clk 0:00:58.6]}
26... dxe4 {[%clk 0:01:34.4]} 27. d5 {[%clk 0:00:52.9]} 27... Rd8 {[%clk
0:01:25.9]} 28. Rd2 {[%clk 0:00:48.5]} 28... Nh7 {[%clk 0:01:02.5]} 29. Nh6+
{[%clk 0:00:39.9]} 29... Kh8 {[%clk 0:01:02.8]} 30. Qxd8 {[%clk 0:00:38.7]}
30... gxh6 {[%clk 0:01:01.2]} 31. Qxa5 {[%clk 0:00:36.3]} 31... Qd6+ {[%clk
0:00:59]} 32. g3 {[%clk 0:00:35.2]} 32... Ng5 {[%clk 0:00:59.5]} 33. Kg2 {[%clk
0:00:04.4]} 33... Nf3 {[%clk 0:00:57.7]} 34. h4 {[%clk 0:00:04.2]} 34... Rg1+
{[%clk 0:00:57]} 35. Kh3 {[%clk 0:00:03.6]} 35... Qd7+ {[%clk 0:00:57.7]} 0-1

[Event "Late-Titled-Tuesday-Blitz-May-14-2024"]
[Site "Chess.com"]
[Date "2024.05.14"]
[Round "2"]
[White "OK97"]
[Black "joksijoksi"]
[Result "1-0"]
[WhiteElo "2886"]
[BlackElo "2516"]
[TimeControl "180+1"]
[EndTime "14:17:37 PDT"]
[Termination "OK97 won by resignation"]

1. d4 {[%clk 0:03:00.9]} 1... d5 {[%clk 0:02:59.6]} 2. Nf3 {[%clk 0:03:00.1]}
2... Nf6 {[%clk 0:02:57.8]} 3. e3 {[%clk 0:03:00.5]} 3... Bf5 {[%clk 0:02:50.9]}
4. c4 {[%clk 0:02:57.6]} 4... c6 {[%clk 0:02:42]} 5. cxd5 {[%clk 0:02:57.4]}
5... cxd5 {[%clk 0:02:41.7]} 6. Qb3 {[%clk 0:02:58]} 6... Nbd7 {[%clk
0:02:12.6]} 7. Nc3 {[%clk 0:02:47.5]} 7... e6 {[%clk 0:02:09.7]} 8. Qxb7 {[%clk
0:02:42.2]} 8... Rb8 {[%clk 0:01:59.7]} 9. Qa6 {[%clk 0:02:38.7]} 9... Bb4
{[%clk 0:01:57.7]} 10. Bd2 {[%clk 0:02:21.7]} 10... O-O {[%clk 0:01:54.7]} 11.
Be2 {[%clk 0:02:20.6]} 11... Ne4 {[%clk 0:01:48]} 12. O-O {[%clk 0:01:58.8]}
12... Nb6 {[%clk 0:01:28.3]} 13. Nxe4 {[%clk 0:01:53.5]} 13... dxe4 {[%clk
0:01:20]} 14. Bxb4 {[%clk 0:01:50]} 14... exf3 {[%clk 0:01:19.9]} 15. Bxf3
{[%clk 0:01:50.1]} 15... Re8 {[%clk 0:01:11.3]} 16. Rac1 {[%clk 0:01:43.5]}
16... Qg5 {[%clk 0:01:09.5]} 17. Bd6 {[%clk 0:01:37.5]} 17... Rbd8 {[%clk
0:01:03]} 18. Bf4 {[%clk 0:01:32.4]} 18... Qg6 {[%clk 0:01:02.6]} 19. Qxa7
{[%clk 0:01:31.9]} 19... Nd5 {[%clk 0:01:00.8]} 20. Bg3 {[%clk 0:01:27.8]} 20...
h5 {[%clk 0:00:57.4]} 21. Rfe1 {[%clk 0:01:08.3]} 21... Ra8 {[%clk 0:00:56.7]}
22. Qc5 {[%clk 0:01:05.3]} 22... Bg4 {[%clk 0:00:42]} 23. Bxg4 {[%clk
0:00:57.4]} 23... Qxg4 {[%clk 0:00:42.9]} 24. h3 {[%clk 0:00:57.2]} 24... Qg6
{[%clk 0:00:41.5]} 25. a3 {[%clk 0:00:53.3]} 25... Nf6 {[%clk 0:00:30.8]} 26.
Qc2 {[%clk 0:00:47.2]} 26... Ne4 {[%clk 0:00:27.6]} 27. Bf4 {[%clk 0:00:47.4]}
27... f5 {[%clk 0:00:18.4]} 28. f3 {[%clk 0:00:45.1]} 28... Nf6 {[%clk
0:00:18.1]} 29. Qf2 {[%clk 0:00:41.2]} 29... Nd5 {[%clk 0:00:16.5]} 30. Be5
{[%clk 0:00:41.4]} 30... Nb6 {[%clk 0:00:11.2]} 31. Rc7 {[%clk 0:00:40.3]} 1-0

[Event "Late-Titled-Tuesday-Blitz-May-14-2024"]
[Site "Chess.com"]
[Date "2024.05.14"]
[Round "2"]
[White "ahkashefi2800"]
[Black "miraitrunks"]
[Result "1-0"]
[WhiteElo "2599"]
[BlackElo "2254"]
[TimeControl "180+1"]
[EndTime "14:17:37 PDT"]
[Termination "ahkashefi2800 won by resignation"]

1. d4 {[%clk 0:02:59.1]} 1... Nf6 {[%clk 0:02:59]} 2. Nf3 {[%clk 0:02:59.1]}
2... g6 {[%clk 0:02:59.1]} 3. g3 {[%clk 0:03:00]} 3... Bg7 {[%clk 0:02:59.2]} 4.
Bg2 {[%clk 0:03:00.9]} 4... O-O {[%clk 0:03:00.1]} 5. O-O {[%clk 0:03:01.8]}
5... d6 {[%clk 0:03:00.5]} 6. b3 {[%clk 0:03:02.7]} 6... Nbd7 {[%clk 0:03:00.1]}
7. Bb2 {[%clk 0:03:03.6]} 7... b6 {[%clk 0:03:00.1]} 8. Ne5 {[%clk 0:03:01.2]}
8... d5 {[%clk 0:02:42.9]} 9. c4 {[%clk 0:02:53.3]} 9... e6 {[%clk 0:01:38.9]}
10. Nc6 {[%clk 0:02:46.3]} 10... Qe8 {[%clk 0:01:37.8]} 11. Ba3 {[%clk
0:02:46.2]} 11... Bb7 {[%clk 0:01:34]} 12. Bxf8 {[%clk 0:02:39.1]} 12... Bxf8
{[%clk 0:01:34.2]} 13. Ne5 {[%clk 0:02:35.2]} 13... Nxe5 {[%clk 0:01:34.2]} 14.
dxe5 {[%clk 0:02:35.2]} 14... Ne4 {[%clk 0:01:33.3]} 15. Qc2 {[%clk 0:02:22.1]}
15... Bc5 {[%clk 0:01:19.3]} 16. Nd2 {[%clk 0:01:58.2]} 16... Qc6 {[%clk
0:01:17.5]} 17. Nxe4 {[%clk 0:01:56.1]} 17... dxe4 {[%clk 0:01:17.5]} 18. e3
{[%clk 0:01:56.5]} 18... Rd8 {[%clk 0:01:14.1]} 19. Rad1 {[%clk 0:01:55.2]}
19... Rxd1 {[%clk 0:01:12.1]} 20. Rxd1 {[%clk 0:01:54.7]} 20... b5 {[%clk
0:01:12.1]} 21. cxb5 {[%clk 0:01:52]} 21... Qxb5 {[%clk 0:01:13]} 22. Bxe4
{[%clk 0:01:50.9]} 22... Bxe4 {[%clk 0:01:13.1]} 23. Qxe4 {[%clk 0:01:51.8]}
23... Qe2 {[%clk 0:01:13.8]} 24. Rd8+ {[%clk 0:01:50.3]} 24... Kg7 {[%clk
0:01:13.5]} 25. Kg2 {[%clk 0:01:48.9]} 25... Qxa2 {[%clk 0:01:11.5]} 26. Qc6
{[%clk 0:01:07.3]} 26... Bxe3 {[%clk 0:01:05.9]} 27. Qf3 {[%clk 0:01:04.3]}
27... Bg5 {[%clk 0:00:55.8]} 28. Rd7 {[%clk 0:00:43]} 28... Kh6 {[%clk
0:00:51.7]} 29. h4 {[%clk 0:00:39.6]} 29... Bc1 {[%clk 0:00:39.2]} 30. Qxf7
{[%clk 0:00:38.1]} 30... Kh5 {[%clk 0:00:39.2]} 31. Qxh7+ {[%clk 0:00:36.7]}
31... Bh6 {[%clk 0:00:38.7]} 32. g4+ {[%clk 0:00:31.8]} 32... Kxg4 {[%clk
0:00:38.1]} 33. Qxg6+ {[%clk 0:00:30.8]} 1-0

[Event "Late-Titled-Tuesday-Blitz-May-14-2024"]
[Site "Chess.com"]
[Date "2024.05.14"]
[Round "2"]
[White "english_player_89"]
[Black "IlyaGrigorjev"]
[Result "0-1"]
[WhiteElo "2603"]
[BlackElo "2877"]
[TimeControl "180+1"]
[EndTime "14:17:38 PDT"]
[Termination "IlyaGrigorjev won by resignation"]

1. e4 {[%clk 0:02:57.1]} 1... e5 {[%clk 0:03:00.2]} 2. Nf3 {[%clk 0:02:57.1]}
2... Nc6 {[%clk 0:03:01]} 3. Bc4 {[%clk 0:02:57.6]} 3... Bc5 {[%clk 0:03:01]} 4.
d3 {[%clk 0:02:57.5]} 4... Nf6 {[%clk 0:03:01.4]} 5. Bb3 {[%clk 0:02:57]} 5...
d6 {[%clk 0:02:59.8]} 6. c3 {[%clk 0:02:56.9]} 6... h6 {[%clk 0:02:58.3]} 7.
Nbd2 {[%clk 0:02:57.5]} 7... O-O {[%clk 0:02:58.4]} 8. h3 {[%clk 0:02:57.3]}
8... a6 {[%clk 0:02:58.9]} 9. g4 {[%clk 0:02:57.1]} 9... Nh7 {[%clk 0:02:51.4]}
10. Rg1 {[%clk 0:02:54.1]} 10... Be6 {[%clk 0:02:48.3]} 11. Nc4 {[%clk
0:02:49.8]} 11... d5 {[%clk 0:02:42.9]} 12. Ncxe5 {[%clk 0:02:36.7]} 12... Nxe5
{[%clk 0:02:41.8]} 13. Nxe5 {[%clk 0:02:36]} 13... dxe4 {[%clk 0:02:37.1]} 14.
d4 {[%clk 0:02:36]} 14... Bd6 {[%clk 0:02:21.5]} 15. Bf4 {[%clk 0:02:30.5]}
15... Bxe5 {[%clk 0:02:05.8]} 16. dxe5 {[%clk 0:02:23.5]} 16... Bxb3 {[%clk
0:01:58.6]} 17. axb3 {[%clk 0:02:07]} 17... Ng5 {[%clk 0:01:58.1]} 18. Qxd8
{[%clk 0:02:02.1]} 18... Raxd8 {[%clk 0:01:59]} 19. Bxg5 {[%clk 0:02:01.7]}
19... hxg5 {[%clk 0:01:59]} 20. Ra4 {[%clk 0:01:55.1]} 20... e3 {[%clk
0:01:53.3]} 21. fxe3 {[%clk 0:01:48.9]} 21... Rfe8 {[%clk 0:01:53.6]} 22. Rd4
{[%clk 0:01:48.2]} 22... c5 {[%clk 0:01:40.5]} 23. Rxd8 {[%clk 0:01:42.7]} 23...
Rxd8 {[%clk 0:01:41.4]} 24. Rf1 {[%clk 0:01:38.4]} 24... Kf8 {[%clk 0:01:31.3]}
25. Rf5 {[%clk 0:01:34.6]} 25... Ke7 {[%clk 0:01:03.2]} 26. e6 {[%clk
0:01:33.7]} 26... Kxe6 {[%clk 0:00:59.8]} 27. Rxg5 {[%clk 0:01:22.9]} 27... Rh8
{[%clk 0:01:00.2]} 28. Rh5 {[%clk 0:01:03.6]} 28... Rxh5 {[%clk 0:00:49.6]} 29.
gxh5 {[%clk 0:01:04.5]} 29... Ke5 {[%clk 0:00:45.3]} 30. Kf2 {[%clk 0:01:04]}
30... Ke4 {[%clk 0:00:43.5]} 31. Ke2 {[%clk 0:01:03.9]} 31... b5 {[%clk
0:00:26.4]} 32. Kd2 {[%clk 0:01:03.7]} 32... c4 {[%clk 0:00:24.6]} 33. bxc4
{[%clk 0:00:52.9]} 33... bxc4 {[%clk 0:00:25.5]} 34. Kc2 {[%clk 0:00:46]} 34...
Kxe3 {[%clk 0:00:21.9]} 35. b3 {[%clk 0:00:46.4]} 35... cxb3+ {[%clk 0:00:20.5]}
36. Kxb3 {[%clk 0:00:47.3]} 36... f5 {[%clk 0:00:21]} 37. c4 {[%clk 0:00:47.3]}
37... Kd4 {[%clk 0:00:21.3]} 38. Kb4 {[%clk 0:00:46.3]} 38... f4 {[%clk
0:00:21.7]} 39. c5 {[%clk 0:00:46.1]} 39... Kd5 {[%clk 0:00:22.3]} 40. Kc3
{[%clk 0:00:42.3]} 40... Kxc5 {[%clk 0:00:22.1]} 41. Kd3 {[%clk 0:00:42.4]}
41... Kd5 {[%clk 0:00:22.7]} 0-1